[Event "*** Titled Tuesday Blitz"]
[Site "Chess.com"]
[Date "2020.11.24"]
[Round "9"]
[White "Nikolakis2014"]
[Black "Smirnov_Pavel"]
[Result "0-1"]
[WhiteElo "2717"]
[BlackElo "2835"]
[TimeControl "180+1"]
[EndTime "12:03:33 PST"]
[Termination "Smirnov_Pavel won on time"]

1. Nf3 {[%clk 0:03:00.9]} 1... Nf6 {[%clk 0:02:59.2]} 2. c4 {[%clk 0:03:00.9]}
2... e6 {[%clk 0:03:00.1]} 3. g3 {[%clk 0:03:01]} 3... d5 {[%clk 0:03:01]} 4. d4
{[%clk 0:03:00.6]} 4... Be7 {[%clk 0:03:00.8]} 5. Bg2 {[%clk 0:03:00.6]} 5...
O-O {[%clk 0:03:01.7]} 6. O-O {[%clk 0:03:00.7]} 6... c6 {[%clk 0:03:02.3]} 7.
Qc2 {[%clk 0:03:00.7]} 7... b6 {[%clk 0:03:02.1]} 8. Nbd2 {[%clk 0:02:56.7]}
8... Bb7 {[%clk 0:03:01.7]} 9. b3 {[%clk 0:02:54.9]} 9... Nbd7 {[%clk
0:03:00.7]} 10. Bb2 {[%clk 0:02:52.6]} 10... Rc8 {[%clk 0:03:00.8]} 11. e4
{[%clk 0:02:52.6]} 11... Rc7 {[%clk 0:02:54.3]} 12. Rad1 {[%clk 0:02:37.7]}
12... Qb8 {[%clk 0:02:40.6]} 13. Rfe1 {[%clk 0:02:28.5]} 13... Re8 {[%clk
0:02:33.5]} 14. Ne5 {[%clk 0:02:25.3]} 14... Nxe5 {[%clk 0:02:30.6]} 15. dxe5
{[%clk 0:02:25]} 15... Nd7 {[%clk 0:02:31.5]} 16. h4 {[%clk 0:02:12.6]} 16...
Rec8 {[%clk 0:02:26.3]} 17. Qb1 {[%clk 0:02:10.6]} 17... b5 {[%clk 0:02:18.4]}
18. cxd5 {[%clk 0:02:06.7]} 18... cxd5 {[%clk 0:02:18]} 19. exd5 {[%clk
0:02:06.9]} 19... Bxd5 {[%clk 0:02:17.4]} 20. Bxd5 {[%clk 0:02:05.5]} 20... exd5
{[%clk 0:02:18.3]} 21. e6 {[%clk 0:02:02.9]} 21... fxe6 {[%clk 0:02:19.2]} 22.
Rxe6 {[%clk 0:02:01.2]} 22... Nc5 {[%clk 0:02:18.3]} 23. Ree1 {[%clk 0:01:53.7]}
23... Rd7 {[%clk 0:02:09.8]} 24. Qf5 {[%clk 0:01:37.7]} 24... Rf8 {[%clk
0:02:09.2]} 25. Qg4 {[%clk 0:01:37.4]} 25... Rf7 {[%clk 0:01:33]} 26. b4 {[%clk
0:01:32]} 26... Nd3 {[%clk 0:01:31.5]} 27. Qxd7 {[%clk 0:01:21.9]} 27... Nxf2
{[%clk 0:01:16.6]} 28. Be5 {[%clk 0:01:12.9]} 28... Qb6 {[%clk 0:01:13.7]} 29.
Kh2 {[%clk 0:00:43]} 29... Nxd1 {[%clk 0:00:34.4]} 30. Rxd1 {[%clk 0:00:39.1]}
30... Qf2+ {[%clk 0:00:33.2]} 31. Kh3 {[%clk 0:00:35.2]} 31... Qe2 {[%clk
0:00:33.7]} 32. Qe8+ {[%clk 0:00:18.8]} 32... Bf8 {[%clk 0:00:33.1]} 33. Rc1
{[%clk 0:00:13.3]} 33... Qxd2 {[%clk 0:00:17.6]} 34. Rc8 {[%clk 0:00:12.6]}
34... Qd1 {[%clk 0:00:13.4]} 35. Qe6 {[%clk 0:00:10.5]} 35... Qh1+ {[%clk
0:00:12.4]} 36. Kg4 {[%clk 0:00:10.8]} 36... Qf3+ {[%clk 0:00:09.7]} 37. Kh3
{[%clk 0:00:10.9]} 37... Qh1+ {[%clk 0:00:10.2]} 38. Kg4 {[%clk 0:00:11]} 38...
Qe4+ {[%clk 0:00:09.6]} 39. Kh3 {[%clk 0:00:10.1]} 39... h5 {[%clk 0:00:07.7]}
40. Rxf8+ {[%clk 0:00:08.3]} 40... Kxf8 {[%clk 0:00:08.6]} 41. Qc8+ {[%clk
0:00:07.1]} 41... Ke7 {[%clk 0:00:08.7]} 42. Qc7+ {[%clk 0:00:05.3]} 42... Ke6
{[%clk 0:00:08.8]} 43. Qd6+ {[%clk 0:00:05.4]} 43... Kf5 {[%clk 0:00:09]} 0-1

[Event "*** Titled Tuesday Blitz"]
[Site "Chess.com"]
[Date "2020.11.24"]
[Round "9"]
[White "TrickyFortem"]
[Black "DoHoChess"]
[Result "1-0"]
[WhiteElo "2525"]
[BlackElo "2686"]
[TimeControl "180+1"]
[EndTime "12:03:36 PST"]
[Termination "TrickyFortem won by resignation"]

1. d4 {[%clk 0:02:37]} 1... d5 {[%clk 0:02:59.5]} 2. c4 {[%clk 0:02:37.3]} 2...
e6 {[%clk 0:02:59.9]} 3. Nf3 {[%clk 0:02:37.9]} 3... Nf6 {[%clk 0:02:59.9]} 4.
g3 {[%clk 0:02:38.4]} 4... Be7 {[%clk 0:02:55.3]} 5. Bg2 {[%clk 0:02:37.1]} 5...
Ne4 {[%clk 0:02:55.6]} 6. O-O {[%clk 0:02:36.8]} 6... f5 {[%clk 0:02:55.7]} 7.
cxd5 {[%clk 0:02:36.4]} 7... exd5 {[%clk 0:02:55.7]} 8. Nc3 {[%clk 0:02:36.3]}
8... Nc6 {[%clk 0:02:44.3]} 9. Qb3 {[%clk 0:02:26.2]} 9... Be6 {[%clk
0:02:15.7]} 10. Qxb7 {[%clk 0:02:23.8]} 10... Nb4 {[%clk 0:02:15.8]} 11. Qb5+
{[%clk 0:02:20]} 11... Kf8 {[%clk 0:01:23.1]} 12. Qa4 {[%clk 0:02:12.9]} 12...
c5 {[%clk 0:01:17.6]} 13. Be3 {[%clk 0:02:06.6]} 13... c4 {[%clk 0:01:09.3]} 14.
Ne5 {[%clk 0:02:03.4]} 14... Qe8 {[%clk 0:00:57.7]} 15. Qd1 {[%clk 0:02:03]}
15... Nc6 {[%clk 0:00:55.3]} 16. Nxc6 {[%clk 0:01:58.2]} 16... Qxc6 {[%clk
0:00:56.2]} 17. Nxe4 {[%clk 0:01:53.9]} 17... fxe4 {[%clk 0:00:50.6]} 18. f3
{[%clk 0:01:51.6]} 18... exf3 {[%clk 0:00:45.4]} 19. exf3 {[%clk 0:01:51.7]}
19... Kf7 {[%clk 0:00:38]} 20. f4 {[%clk 0:01:51.9]} 20... Bf5 {[%clk
0:00:38.2]} 21. Qd2 {[%clk 0:01:23.9]} 21... Rab8 {[%clk 0:00:38.3]} 22. Rae1
{[%clk 0:01:23.3]} 22... Bb4 {[%clk 0:00:37.3]} 23. Qe2 {[%clk 0:01:19.7]} 23...
Bxe1 {[%clk 0:00:36]} 24. Rxe1 {[%clk 0:01:19.8]} 24... Rhe8 {[%clk 0:00:35.7]}
25. Qh5+ {[%clk 0:01:18.1]} 25... g6 {[%clk 0:00:21.1]} 26. Qxh7+ {[%clk
0:01:17.9]} 26... Kf6 {[%clk 0:00:21.3]} 27. g4 {[%clk 0:01:13.8]} 27... Rh8
{[%clk 0:00:15.2]} 28. g5+ {[%clk 0:01:00.1]} 28... Ke6 {[%clk 0:00:15.6]} 29.
Bd2+ {[%clk 0:00:57]} 29... Be4 {[%clk 0:00:15.6]} 30. Bh3+ {[%clk 0:00:44.2]}
30... Kd6 {[%clk 0:00:15.9]} 31. Bb4+ {[%clk 0:00:42.9]} 31... Rxb4 {[%clk
0:00:15.6]} 32. Qxh8 {[%clk 0:00:43.4]} 32... Qb6 {[%clk 0:00:13.1]} 33. Qf8+
{[%clk 0:00:41.5]} 33... Kc7 {[%clk 0:00:12.7]} 34. Qg7+ {[%clk 0:00:40.1]}
34... Kb8 {[%clk 0:00:12.2]} 35. Qf8+ {[%clk 0:00:35.6]} 35... Kc7 {[%clk
0:00:12.7]} 36. Qg7+ {[%clk 0:00:35.8]} 36... Kb8 {[%clk 0:00:12.9]} 37. f5
{[%clk 0:00:33.7]} 37... Rxb2 {[%clk 0:00:11.7]} 38. fxg6 {[%clk 0:00:32.8]}
38... a5 {[%clk 0:00:09.7]} 39. Rf1 {[%clk 0:00:33]} 39... Qb7 {[%clk
0:00:01.5]} 40. Rf8+ {[%clk 0:00:32.2]} 40... Ka7 {[%clk 0:00:02.1]} 41. Rf7
{[%clk 0:00:32.7]} 41... Rb1+ {[%clk 0:00:02.6]} 42. Kf2 {[%clk 0:00:33.3]}
42... Rb2+ {[%clk 0:00:02.9]} 43. Kg3 {[%clk 0:00:33.4]} 43... c3 {[%clk
0:00:03.4]} 44. Rxb7+ {[%clk 0:00:32.8]} 44... Rxb7 {[%clk 0:00:04.3]} 45. Qf8
{[%clk 0:00:31.4]} 45... c2 {[%clk 0:00:05.2]} 46. Qc5+ {[%clk 0:00:31.2]} 46...
Kb8 {[%clk 0:00:05.6]} 47. Qf8+ {[%clk 0:00:28.9]} 47... Ka7 {[%clk 0:00:05.9]}
48. Qc5+ {[%clk 0:00:27.3]} 48... Kb8 {[%clk 0:00:06.2]} 49. Qd6+ {[%clk
0:00:25.8]} 49... Rc7 {[%clk 0:00:06.3]} 50. g7 {[%clk 0:00:26.2]} 50... c1=Q
{[%clk 0:00:05.8]} 51. Qb6+ {[%clk 0:00:25.1]} 51... Ka8 {[%clk 0:00:02.6]} 52.
g8=Q+ {[%clk 0:00:25.2]} 1-0

[Event "*** Titled Tuesday Blitz"]
[Site "Chess.com"]
[Date "2020.11.24"]
[Round "9"]
[White "MatyChess1"]
[Black "onnoelgersma"]
[Result "0-1"]
[WhiteElo "2568"]
[BlackElo "2421"]
[TimeControl "180+1"]
[EndTime "12:03:37 PST"]
[Termination "onnoelgersma won by checkmate"]

1. e4 {[%clk 0:03:00.9]} 1... c5 {[%clk 0:02:55.8]} 2. Nf3 {[%clk 0:03:01]} 2...
e6 {[%clk 0:02:54.9]} 3. g3 {[%clk 0:03:00.9]} 3... Nc6 {[%clk 0:02:47.4]} 4.
Bg2 {[%clk 0:03:00.7]} 4... a6 {[%clk 0:02:47.6]} 5. O-O {[%clk 0:03:00.6]} 5...
Nf6 {[%clk 0:02:47.7]} 6. e5 {[%clk 0:02:59.4]} 6... Ng4 {[%clk 0:02:47.3]} 7.
Qe2 {[%clk 0:02:55.6]} 7... Qc7 {[%clk 0:02:46.9]} 8. Re1 {[%clk 0:02:54.5]}
8... Be7 {[%clk 0:02:46.2]} 9. h3 {[%clk 0:02:34.1]} 9... Nh6 {[%clk 0:02:45.7]}
10. d3 {[%clk 0:02:34.1]} 10... Nf5 {[%clk 0:02:45.5]} 11. c3 {[%clk 0:02:34.7]}
11... h5 {[%clk 0:02:42.5]} 12. Nbd2 {[%clk 0:02:32.5]} 12... b5 {[%clk
0:02:42.8]} 13. a4 {[%clk 0:02:29.9]} 13... Bb7 {[%clk 0:02:42.4]} 14. Ne4
{[%clk 0:01:59.3]} 14... Rb8 {[%clk 0:02:28.1]} 15. axb5 {[%clk 0:01:55.3]}
15... axb5 {[%clk 0:02:26.4]} 16. Bf4 {[%clk 0:01:54.9]} 16... Ra8 {[%clk
0:02:22]} 17. Rad1 {[%clk 0:01:43]} 17... Qb6 {[%clk 0:02:08.7]} 18. Qd2 {[%clk
0:01:27.2]} 18... Ra2 {[%clk 0:02:03]} 19. Qc1 {[%clk 0:01:12.4]} 19... Ra8
{[%clk 0:01:43.8]} 20. Bg5 {[%clk 0:01:12]} 20... Bf8 {[%clk 0:01:41.7]} 21. g4
{[%clk 0:01:08.7]} 21... hxg4 {[%clk 0:01:41.3]} 22. hxg4 {[%clk 0:01:09.6]}
22... Nh6 {[%clk 0:01:41.1]} 23. Qf4 {[%clk 0:01:10.1]} 23... Ng8 {[%clk
0:01:05.7]} 24. Bh4 {[%clk 0:00:59.6]} 24... Rxh4 {[%clk 0:00:45.8]} 25. Nxh4
{[%clk 0:00:58.4]} 25... Be7 {[%clk 0:00:44.5]} 26. Nf3 {[%clk 0:00:56.5]} 26...
Nh6 {[%clk 0:00:42.6]} 27. Ng3 {[%clk 0:00:41.8]} 27... b4 {[%clk 0:00:37.5]}
28. g5 {[%clk 0:00:39.8]} 28... Ng8 {[%clk 0:00:33.8]} 29. Nd2 {[%clk
0:00:34.1]} 29... Qc7 {[%clk 0:00:28.7]} 30. Nc4 {[%clk 0:00:33.4]} 30... Ra2
{[%clk 0:00:16.5]} 31. Ne4 {[%clk 0:00:25]} 31... Nd8 {[%clk 0:00:10]} 32. Ned6+
{[%clk 0:00:19.9]} 32... Bxd6 {[%clk 0:00:10.3]} 33. Nxd6+ {[%clk 0:00:20.8]}
33... Kf8 {[%clk 0:00:10.9]} 34. Bxb7 {[%clk 0:00:21.4]} 34... Rxb2 {[%clk
0:00:09.8]} 35. cxb4 {[%clk 0:00:19.2]} 35... Ne7 {[%clk 0:00:09.2]} 36. bxc5
{[%clk 0:00:14.8]} 36... Ng6 {[%clk 0:00:09.6]} 37. Qf3 {[%clk 0:00:12]} 37...
Qxc5 {[%clk 0:00:09.7]} 38. d4 {[%clk 0:00:10.9]} 38... Qc2 {[%clk 0:00:08.4]}
39. Be4 {[%clk 0:00:11]} 39... Qb3 {[%clk 0:00:04.3]} 40. Bxg6 {[%clk 0:00:11]}
40... Qxf3 {[%clk 0:00:03.5]} 41. Rf1 {[%clk 0:00:03.4]} 41... fxg6 {[%clk
0:00:03.7]} 42. Rc1 {[%clk 0:00:03.9]} 42... Qg4+ {[%clk 0:00:03.9]} 43. Kh2
{[%clk 0:00:04.5]} 43... Rb3 {[%clk 0:00:04.5]} 44. f3 {[%clk 0:00:01.9]} 44...
Rb2+ {[%clk 0:00:02.6]} 45. Kh1 {[%clk 0:00:02.4]} 45... Qg2# {[%clk 0:00:02.5]}
0-1

[Event "*** Titled Tuesday Blitz"]
[Site "Chess.com"]
[Date "2020.11.24"]
[Round "9"]
[White "MattyDPerrine"]
[Black "Piotrek1979"]
[Result "1-0"]
[WhiteElo "2393"]
[BlackElo "2496"]
[TimeControl "180+1"]
[EndTime "12:03:37 PST"]
[Termination "MattyDPerrine won by resignation"]

1. e4 {[%clk 0:03:00.9]} 1... c5 {[%clk 0:02:54.7]} 2. Nf3 {[%clk 0:03:00.8]}
2... e6 {[%clk 0:02:53.8]} 3. d4 {[%clk 0:02:59.9]} 3... cxd4 {[%clk 0:02:53.9]}
4. Nxd4 {[%clk 0:03:00.8]} 4... Nf6 {[%clk 0:02:42.2]} 5. Nc3 {[%clk 0:03:00.7]}
5... d6 {[%clk 0:02:40.1]} 6. g4 {[%clk 0:02:59.3]} 6... a6 {[%clk 0:02:30.6]}
7. g5 {[%clk 0:02:58.7]} 7... Nfd7 {[%clk 0:02:30.2]} 8. Rg1 {[%clk 0:02:51.1]}
8... b5 {[%clk 0:02:27.2]} 9. h4 {[%clk 0:02:36.3]} 9... Bb7 {[%clk 0:02:26.4]}
10. f3 {[%clk 0:02:27.8]} 10... g6 {[%clk 0:02:22.9]} 11. Be3 {[%clk 0:02:18.9]}
11... Qc7 {[%clk 0:02:16.6]} 12. Qd2 {[%clk 0:02:10.4]} 12... Bg7 {[%clk
0:02:15.7]} 13. a4 {[%clk 0:02:08.8]} 13... b4 {[%clk 0:02:14.8]} 14. Na2 {[%clk
0:02:09.3]} 14... O-O {[%clk 0:01:23.4]} 15. Nxb4 {[%clk 0:02:04]} 15... Ne5
{[%clk 0:01:15.3]} 16. b3 {[%clk 0:01:34.9]} 16... Rc8 {[%clk 0:01:00.7]} 17.
Be2 {[%clk 0:01:16.8]} 17... Rd8 {[%clk 0:00:32.1]} 18. c4 {[%clk 0:01:05.3]}
18... Nbd7 {[%clk 0:00:28.1]} 19. f4 {[%clk 0:00:42.4]} 19... Nc5 {[%clk
0:00:27.8]} 20. Qa2 {[%clk 0:00:22.5]} 20... Nxe4 {[%clk 0:00:19.7]} 21. fxe5
{[%clk 0:00:20.7]} 21... dxe5 {[%clk 0:00:20.6]} 22. Nf3 {[%clk 0:00:19]} 22...
Qa5 {[%clk 0:00:20.3]} 23. Qc2 {[%clk 0:00:11.8]} 23... Qxb4+ {[%clk 0:00:19.6]}
24. Kf1 {[%clk 0:00:12.7]} 24... Nc5 {[%clk 0:00:13.7]} 25. Nd2 {[%clk
0:00:11.4]} 25... e4 {[%clk 0:00:13.2]} 26. Rd1 {[%clk 0:00:09.7]} 26... Bc3
{[%clk 0:00:12]} 27. Bxc5 {[%clk 0:00:06.2]} 27... Qxc5 {[%clk 0:00:12.2]} 28.
Qxc3 {[%clk 0:00:06.6]} 28... Qf5+ {[%clk 0:00:11.2]} 29. Ke1 {[%clk 0:00:05.6]}
29... e3 {[%clk 0:00:11.4]} 30. Qxe3 {[%clk 0:00:06]} 30... Qc2 {[%clk
0:00:06.4]} 31. Rf1 {[%clk 0:00:05.8]} 31... Rd7 {[%clk 0:00:06]} 32. Nf3 {[%clk
0:00:04.9]} 32... Rad8 {[%clk 0:00:05.1]} 33. Rxd7 {[%clk 0:00:04.6]} 33... Rxd7
{[%clk 0:00:06]} 34. Ne5 {[%clk 0:00:05.2]} 34... Re7 {[%clk 0:00:05]} 35. Qc5
{[%clk 0:00:03.5]} 35... Re8 {[%clk 0:00:04.5]} 36. Nxf7 {[%clk 0:00:03.2]}
36... Qc1+ {[%clk 0:00:04.6]} 37. Kf2 {[%clk 0:00:03.3]} 37... Qf4+ {[%clk
0:00:05.2]} 38. Ke1 {[%clk 0:00:02.3]} 38... Qxh4+ {[%clk 0:00:05.6]} 39. Kd1
{[%clk 0:00:02.4]} 39... Rf8 {[%clk 0:00:05.1]} 40. Nh6+ {[%clk 0:00:02.6]}
40... Qxh6 {[%clk 0:00:04.2]} 41. gxh6 {[%clk 0:00:03.5]} 41... Rd8+ {[%clk
0:00:04.3]} 42. Kc2 {[%clk 0:00:04.1]} 42... Be4+ {[%clk 0:00:04.5]} 43. Kc3
{[%clk 0:00:03.7]} 43... Bf5 {[%clk 0:00:05.4]} 44. Qe5 {[%clk 0:00:04.2]} 44...
Kf7 {[%clk 0:00:04.7]} 45. Rd1 {[%clk 0:00:04.2]} 45... Ke8 {[%clk 0:00:05.6]}
46. Rxd8+ {[%clk 0:00:03.9]} 46... Kxd8 {[%clk 0:00:06.5]} 47. Qd6+ {[%clk
0:00:04.8]} 47... Ke8 {[%clk 0:00:06.7]} 48. c5 {[%clk 0:00:05.7]} 1-0

[Event "*** Titled Tuesday Blitz"]
[Site "Chess.com"]
[Date "2020.11.24"]
[Round "9"]
[White "witcher8"]
[Black "queen_iryna"]
[Result "0-1"]
[WhiteElo "2437"]
[BlackElo "2286"]
[TimeControl "180+1"]
[EndTime "12:03:37 PST"]
[Termination "queen_iryna won by resignation"]

1. e4 {[%clk 0:03:00.9]} 1... d6 {[%clk 0:02:59.7]} 2. d4 {[%clk 0:03:00.3]}
2... Nf6 {[%clk 0:02:59.9]} 3. Nc3 {[%clk 0:03:00.8]} 3... e5 {[%clk 0:02:59.7]}
4. Nf3 {[%clk 0:02:54.9]} 4... Nbd7 {[%clk 0:02:59.5]} 5. Bc4 {[%clk 0:02:52.4]}
5... Be7 {[%clk 0:02:58.9]} 6. O-O {[%clk 0:02:48.4]} 6... O-O {[%clk
0:02:57.8]} 7. a4 {[%clk 0:02:47.9]} 7... c6 {[%clk 0:02:57.8]} 8. h3 {[%clk
0:02:45.8]} 8... h6 {[%clk 0:02:57.5]} 9. Re1 {[%clk 0:02:43.1]} 9... Re8 {[%clk
0:02:55.3]} 10. b3 {[%clk 0:02:23.7]} 10... Bf8 {[%clk 0:02:53.3]} 11. Bb2
{[%clk 0:02:22.2]} 11... Qc7 {[%clk 0:02:31.1]} 12. Nh4 {[%clk 0:02:15.2]} 12...
exd4 {[%clk 0:02:24]} 13. Qxd4 {[%clk 0:02:14.6]} 13... Nc5 {[%clk 0:01:54.1]}
14. Nf5 {[%clk 0:01:57.4]} 14... Bxf5 {[%clk 0:01:52.2]} 15. exf5 {[%clk
0:01:57.5]} 15... d5 {[%clk 0:01:51.6]} 16. Bf1 {[%clk 0:01:42.8]} 16... Nce4
{[%clk 0:01:39.4]} 17. Nxe4 {[%clk 0:01:37.4]} 17... Nxe4 {[%clk 0:01:40.3]} 18.
Bd3 {[%clk 0:01:21.4]} 18... Nf6 {[%clk 0:01:26.7]} 19. b4 {[%clk 0:01:17.5]}
19... a6 {[%clk 0:01:03.6]} 20. a5 {[%clk 0:01:16.6]} 20... Qd7 {[%clk
0:00:59.4]} 21. Qh4 {[%clk 0:01:06.1]} 21... Rxe1+ {[%clk 0:00:52.7]} 22. Rxe1
{[%clk 0:01:05]} 22... Re8 {[%clk 0:00:50.9]} 23. Rxe8 {[%clk 0:01:02.1]} 23...
Nxe8 {[%clk 0:00:51.8]} 24. Bd4 {[%clk 0:00:55.5]} 24... Qe7 {[%clk 0:00:43.6]}
25. f6 {[%clk 0:00:54.7]} 25... Nxf6 {[%clk 0:00:27.6]} 26. c3 {[%clk
0:00:38.4]} 26... Qe1+ {[%clk 0:00:21.8]} 27. Bf1 {[%clk 0:00:38]} 27... Ne4
{[%clk 0:00:19.7]} 28. Qf4 {[%clk 0:00:30.9]} 28... Nxc3 {[%clk 0:00:16.4]} 29.
Qf3 {[%clk 0:00:22.8]} 29... Ne4 {[%clk 0:00:12]} 30. g4 {[%clk 0:00:21.7]}
30... Qxb4 {[%clk 0:00:10.9]} 31. Bb6 {[%clk 0:00:21.8]} 31... Bc5 {[%clk
0:00:08.9]} 32. Bxc5 {[%clk 0:00:18.3]} 32... Qxc5 {[%clk 0:00:09.8]} 33. Bd3
{[%clk 0:00:18.5]} 33... Qxa5 {[%clk 0:00:09.2]} 34. Bxe4 {[%clk 0:00:18.1]}
34... Qe1+ {[%clk 0:00:09.1]} 35. Kh2 {[%clk 0:00:16.6]} 35... Qxe4 {[%clk
0:00:10]} 36. Qb3 {[%clk 0:00:11.8]} 36... b5 {[%clk 0:00:09.8]} 37. Qa3 {[%clk
0:00:11.4]} 37... Qe5+ {[%clk 0:00:09.7]} 38. Kg2 {[%clk 0:00:10.7]} 38... d4
{[%clk 0:00:09.5]} 39. Qxa6 {[%clk 0:00:08.8]} 39... Qd5+ {[%clk 0:00:09.8]} 40.
f3 {[%clk 0:00:07.1]} 40... d3 {[%clk 0:00:10.2]} 41. Qa1 {[%clk 0:00:01.8]}
41... d2 {[%clk 0:00:09.8]} 42. Qd1 {[%clk 0:00:02.7]} 42... b4 {[%clk 0:00:10]}
43. Kf2 {[%clk 0:00:02.5]} 43... b3 {[%clk 0:00:10.4]} 44. Ke2 {[%clk
0:00:03.4]} 44... c5 {[%clk 0:00:09.7]} 45. Qxd2 {[%clk 0:00:02.5]} 45... Qxd2+
{[%clk 0:00:09.5]} 46. Kxd2 {[%clk 0:00:03.4]} 46... c4 {[%clk 0:00:09.9]} 47.
Kc3 {[%clk 0:00:04.3]} 47... Kf8 {[%clk 0:00:10.1]} 48. f4 {[%clk 0:00:05.2]}
48... Ke7 {[%clk 0:00:10.3]} 0-1

[Event "*** Titled Tuesday Blitz"]
[Site "Chess.com"]
[Date "2020.11.24"]
[Round "9"]
[White "kai_nov"]
[Black "Dave_ChessMate"]
[Result "1-0"]
[WhiteElo "2343"]
[BlackElo "2444"]
[TimeControl "180+1"]
[EndTime "12:03:37 PST"]
[Termination "kai_nov won on time"]

1. d4 {[%clk 0:03:00]} 1... Nf6 {[%clk 0:02:54.6]} 2. c4 {[%clk 0:02:58.7]} 2...
e6 {[%clk 0:02:54.7]} 3. Nc3 {[%clk 0:02:58.3]} 3... c5 {[%clk 0:02:55.2]} 4. d5
{[%clk 0:02:57.8]} 4... exd5 {[%clk 0:02:56.1]} 5. cxd5 {[%clk 0:02:57.8]} 5...
d6 {[%clk 0:02:56.7]} 6. e4 {[%clk 0:02:58.4]} 6... g6 {[%clk 0:02:56.9]} 7. f3
{[%clk 0:02:58.9]} 7... Bg7 {[%clk 0:02:56.8]} 8. Bg5 {[%clk 0:02:59.5]} 8...
O-O {[%clk 0:02:55.5]} 9. Qd2 {[%clk 0:02:59.7]} 9... a6 {[%clk 0:02:56]} 10. a4
{[%clk 0:02:59.7]} 10... Re8 {[%clk 0:02:47.8]} 11. Ra3 {[%clk 0:02:58.3]} 11...
Qc7 {[%clk 0:02:44.6]} 12. Nge2 {[%clk 0:02:52.5]} 12... Nbd7 {[%clk 0:02:38.5]}
13. Ng3 {[%clk 0:02:52]} 13... Ne5 {[%clk 0:02:38.8]} 14. Be2 {[%clk 0:02:52.1]}
14... h5 {[%clk 0:02:18.5]} 15. O-O {[%clk 0:02:51.1]} 15... Nh7 {[%clk
0:02:18.2]} 16. Be3 {[%clk 0:02:50.1]} 16... Bd7 {[%clk 0:02:09.3]} 17. h3
{[%clk 0:02:47.3]} 17... b5 {[%clk 0:01:56.5]} 18. axb5 {[%clk 0:02:45.6]} 18...
axb5 {[%clk 0:01:57.4]} 19. Rxa8 {[%clk 0:02:43]} 19... Rxa8 {[%clk 0:01:58.3]}
20. Nxb5 {[%clk 0:02:34.7]} 20... Bxb5 {[%clk 0:01:48.9]} 21. Bxb5 {[%clk
0:02:33.3]} 21... Qb6 {[%clk 0:01:49.5]} 22. Be2 {[%clk 0:02:22.4]} 22... Rb8
{[%clk 0:01:43]} 23. f4 {[%clk 0:02:18.9]} 23... Nd7 {[%clk 0:01:41.8]} 24. Rb1
{[%clk 0:02:08.1]} 24... Qb3 {[%clk 0:01:15.5]} 25. Bd1 {[%clk 0:01:51]} 25...
Qa2 {[%clk 0:01:15.2]} 26. Bc2 {[%clk 0:01:46.3]} 26... Rxb2 {[%clk 0:01:14]}
27. Rxb2 {[%clk 0:01:45]} 27... Qxb2 {[%clk 0:01:14.9]} 28. e5 {[%clk
0:01:38.9]} 28... dxe5 {[%clk 0:01:13.2]} 29. f5 {[%clk 0:01:37.7]} 29... Nhf6
{[%clk 0:01:06.8]} 30. fxg6 {[%clk 0:01:28.9]} 30... fxg6 {[%clk 0:01:07.7]} 31.
d6 {[%clk 0:01:23.8]} 31... e4 {[%clk 0:00:45.4]} 32. Nxe4 {[%clk 0:01:14.6]}
32... Nxe4 {[%clk 0:00:42.3]} 33. Qd5+ {[%clk 0:01:10.6]} 33... Kh7 {[%clk
0:00:33.5]} 34. Qxe4 {[%clk 0:01:08.7]} 34... Qa1+ {[%clk 0:00:32.1]} 35. Bb1
{[%clk 0:00:37.5]} 35... Qf6 {[%clk 0:00:25.1]} 36. Qd5 {[%clk 0:00:26.1]} 36...
Qe5 {[%clk 0:00:20.3]} 37. Qd3 {[%clk 0:00:22.8]} 37... Qf6 {[%clk 0:00:12.3]}
38. Bc2 {[%clk 0:00:20.7]} 38... Ne5 {[%clk 0:00:10.4]} 39. Qd5 {[%clk
0:00:19.6]} 39... Nd7 {[%clk 0:00:09]} 40. Qxh5+ {[%clk 0:00:18.7]} 40... Kg8
{[%clk 0:00:08.2]} 41. Bxg6 {[%clk 0:00:18.5]} 41... Qa1+ {[%clk 0:00:06.7]} 42.
Kf2 {[%clk 0:00:15.9]} 42... Qb2+ {[%clk 0:00:04]} 43. Kf3 {[%clk 0:00:15.8]}
43... Ne5+ {[%clk 0:00:03.7]} 44. Kg3 {[%clk 0:00:15.4]} 44... Nxg6 {[%clk
0:00:02.7]} 45. Qxg6 {[%clk 0:00:14.9]} 45... Qe5+ {[%clk 0:00:02.8]} 46. Kf3
{[%clk 0:00:14.4]} 1-0